bitfinex-derivatives/quotes_ETHF0:USTF0_20260118
["timestamp","ask_amount","ask_price","bid_price","bid_amount"]
[1768698990769,1.697,3303.1,3302.1,1.1125535]
[1768698990963,1.34709203,3303.0,3302.1,1.1125535]
[1768698991263,0.27753842,3302.9,3302.1,0.13397873]
[1768698991466,1.697,3303.1,3302.1,0.13397873]
[1768698991763,1.34719763,3303.0,3302.1,0.13397873]
[1768698991963,0.27756017,3302.9,3302.1,0.13397873]
[1768698992166,1.697,3303.1,3302.1,0.13397873]
[1768698992359,1.34720034,3303.0,3302.1,0.13397873]
[1768698992560,1.34720034,3302.9,3302.1,0.13397873]
[1768698992758,1.697,3303.1,3302.1,0.13397873]
[1768698992961,1.34733224,3303.0,3302.1,0.13397873]
[1768698993157,1.34733224,3302.9,3302.1,0.13397873]
[1768698993465,0.27758785,3302.8,3302.1,0.13397873]
[1768698993666,1.697,3303.1,3302.1,0.13397873]
[1768698993866,1.34733319,3303.0,3302.1,0.13397873]
[1768698994161,1.34733319,3302.9,3302.1,0.13397873]
[1768698994365,0.27758811,3302.8,3302.1,0.13397873]
[1768698994550,1.697,3303.1,3302.1,0.13397873]
[1768698994749,1.34733145,3303.0,3302.1,0.13397873]
[1768698994962,1.34733145,3302.9,3302.1,0.13397873]
[1768698995164,0.27758758,3302.8,3302.1,0.13397873]
[1768698995365,1.697,3303.1,3302.1,0.13397873]
[1768698995554,1.34733147,3303.0,3302.1,0.13397873]
[1768698995758,1.34733147,3302.9,3302.1,0.13397873]
[1768698996050,0.27758758,3302.8,3302.1,0.13397873]
[1768698996253,1.697,3303.1,3302.1,0.13397873]
[1768698996453,1.34733148,3303.0,3302.1,0.13397873]
[1768698996662,1.34733148,3302.9,3302.1,0.13397873]
[1768698996864,0.27758758,3302.8,3302.1,0.13397873]
[1768698997054,1.697,3303.1,3302.1,0.13397873]
[1768698997254,1.34463997,3303.0,3302.1,0.13397873]
[1768698997457,1.34463997,3302.9,3302.1,0.13397873]
[1768698997650,0.27758759,3302.8,3302.1,0.13397873]
[1768698997858,1.697,3303.1,3302.1,0.13397873]
[1768698998155,1.34463919,3303.0,3302.1,0.13397873]
[1768698998356,1.34463919,3302.9,3302.1,0.13397873]
[1768698998551,0.27758725,3302.8,3302.1,0.13397873]
[1768698998857,1.697,3303.1,3302.1,0.13397873]
[1768698999059,1.34466936,3303.0,3302.1,0.13397873]
[1768698999266,1.34466936,3302.9,3302.1,0.13397873]
[1768698999567,0.27759352,3302.8,3302.1,0.13397873]
[1768698999761,1.697,3303.1,3302.1,0.13397873]
[1768698999963,1.34468644,3303.0,3302.1,0.13397873]
[1768699000269,1.34468644,3302.9,3302.1,0.13397873]
[1768699000459,0.27759698,3302.8,3302.1,0.13397873]
[1768699000660,1.697,3303.1,3302.1,0.13397873]
[1768699000870,1.34473009,3303.0,3302.1,0.13397873]
[1768699001169,1.34473009,3302.9,3302.1,0.13397873]
[1768699001467,0.27760599,3302.8,3302.1,0.13397873]
[1768699001659,1.697,3303.1,3302.1,0.13397873]
[1768699001860,1.34478074,3303.0,3302.1,0.13397873]
[1768699002059,1.34478074,3302.9,3302.1,0.13397873]
[1768699002268,1.697,3303.1,3302.1,0.13397873]
[1768699002465,1.34486563,3303.0,3302.1,0.13397873]
[1768699002663,1.34486563,3302.9,3302.1,0.13397873]
[1768699002969,1.697,3303.1,3302.1,0.13397873]
[1768699003169,1.34485774,3303.0,3302.1,0.13397873]
[1768699003372,1.697,3303.1,3302.1,0.13397873]
[1768699003571,1.34487552,3303.0,3302.1,0.13397873]
[1768699003773,1.697,3303.1,3302.1,0.13397873]
[1768699003963,1.34487497,3303.0,3302.1,0.13397873]
[1768699004165,3.3153941,3303.6,3302.1,0.13397873]
[1768699004465,1.34487221,3303.5,3302.1,0.13397873]
[1768699004667,1.34487221,3303.4,3302.1,0.13397873]
[1768699004868,1.34487221,3303.3,3302.1,0.13397873]
[1768699005067,1.34487221,3303.2,3302.1,0.13397873]
[1768699005267,1.34487221,3303.1,3302.1,0.13397873]
[1768699005473,0.27763229,3303.0,3302.1,0.13397873]
[1768699005771,3.3153941,3303.6,3302.1,0.13397873]
[1768699005963,1.34489739,3303.5,3302.1,0.13397873]
[1768699006166,1.34489739,3303.4,3302.1,0.13397873]
[1768699006369,0.27763749,3303.3,3302.1,0.13397873]
[1768699006574,1.699,3303.6,3302.1,0.13397873]
[1768699006768,1.34476665,3303.5,3302.1,0.13397873]
[1768699006969,1.34476665,3303.4,3302.1,0.13397873]
[1768699007168,1.699,3303.6,3302.1,0.13397873]
[1768699007360,0.27760661,3303.5,3302.1,0.13397873]
[1768699007565,1.699,3303.6,3302.1,0.13397873]
[1768699007765,0.27755892,3303.5,3302.1,0.13397873]
[1768699008064,1.699,3303.6,3302.1,0.13397873]
[1768699008265,0.27755895,3303.5,3302.1,0.13397873]
[1768699008467,1.699,3303.6,3302.1,0.13397873]
[1768699010973,1.6163941,3304.2,3302.1,0.13397873]
[1768699011274,0.27733676,3304.1,3302.1,0.13397873]
[1768699011469,1.34348072,3304.0,3302.1,0.13397873]
[1768699011667,1.34348072,3303.9,3302.4,0.13699799]
[1768699011868,1.34348072,3303.8,3302.4,0.13699799]
[1768699012070,6.73,3304.3,3302.4,0.13699799]
[1768699012274,1.34335252,3304.2,3302.4,0.13699799]
[1768699012478,1.34335252,3304.1,3302.4,0.13699799]
[1768699012675,1.34335252,3304.0,3302.4,0.13699799]
[1768699012878,1.34335252,3303.9,3302.4,0.13699799]
[1768699013066,0.27730857,3303.8,3302.4,0.13699799]
[1768699013271,6.73,3304.3,3302.4,0.13699799]
[1768699013479,1.34276309,3304.2,3302.4,0.13699799]
[1768699013774,1.34276309,3304.1,3302.4,0.13699799]
[1768699014078,1.34276309,3304.0,3302.4,0.13699799]
[1768699014378,1.34276309,3303.9,3302.4,0.13699799]
[1768699014677,1.699,3304.3,3302.4,0.13699799]
[1768699014877,1.34256401,3304.2,3302.4,0.13699799]
[1768699015077,1.34256401,3304.1,3302.4,0.13699799]
[1768699015278,1.34256401,3304.0,3302.4,0.13699799]
[1768699015576,1.34256401,3303.9,3302.4,0.13699799]
[1768699015778,1.699,3304.3,3302.4,0.13699799]
[1768699016079,1.34239975,3304.2,3302.4,0.13699799]
[1768699016280,1.34239975,3304.1,3302.4,0.13699799]
[1768699016577,1.34239975,3304.0,3302.4,0.13699799]
[1768699016776,1.34239975,3303.9,3302.4,0.13699799]
[1768699016977,1.699,3304.3,3302.4,0.13699799]
[1768699017177,1.34227705,3304.2,3302.4,0.13699799]
[1768699017476,1.34227705,3304.1,3302.4,0.13699799]
[1768699017780,1.34227705,3304.0,3302.4,0.13699799]
[1768699017981,0.27708578,3303.9,3302.4,0.13699799]
[1768699018182,1.699,3304.3,3302.4,0.13699799]
[1768699018383,1.342211,3304.2,3302.4,0.13699799]
[1768699018580,1.342211,3304.1,3302.4,0.13699799]
[1768699018780,1.342211,3304.0,3302.4,0.13699799]
[1768699019080,1.699,3304.3,3302.4,0.13699799]
[1768699019281,1.34221992,3304.2,3302.4,0.13699799]
[1768699019580,1.34221992,3304.1,3302.4,0.13699799]
[1768699019782,1.699,3304.3,3302.4,0.13699799]
[1768699019982,1.34207364,3304.2,3302.4,0.13699799]
[1768699020181,1.34207364,3304.1,3302.4,0.13699799]
[1768699020385,1.699,3304.3,3302.4,0.13699799]
[1768699020690,1.699,3304.3,3302.8,0.14087283]
[1768699025190,2.67797892,3304.3,3302.8,0.14087283]
[1768699025577,2.67797892,3304.3,3302.4,0.14087283]
[1768699027292,1.699,3304.3,3302.4,0.14087283]
[1768699029893,1.85037,3304.3,3302.4,0.14087283]
[1768699033196,0.0022583,3304.5,3302.8,0.14087283]
[1768699033395,1.33622809,3304.4,3302.8,0.14087283]
[1768699033599,0.0022583,3304.5,3302.8,0.14087283]
[1768699033897,1.33628634,3304.4,3302.8,0.14087283]
[1768699034097,0.0022583,3304.5,3302.8,0.14087283]
[1768699034293,1.33627683,3304.4,3302.8,0.14087283]
[1768699034498,0.2771103,3304.3,3302.8,0.14087283]
[1768699034694,0.0022583,3304.5,3302.8,0.14087283]
[1768699034900,1.33661045,3304.4,3302.8,0.14087283]
[1768699035100,0.27717875,3304.3,3302.8,0.14087283]
[1768699035301,0.0022583,3304.5,3302.8,0.14087283]
[1768699035495,1.3370535,3304.4,3302.8,0.14087283]
[1768699035693,1.3370535,3304.3,3302.8,0.14087283]
[1768699035994,0.0022583,3304.5,3302.8,0.14087283]
[1768699036194,1.3370535,3304.4,3302.8,0.14087283]
[1768699036391,0.0022583,3304.5,3302.8,0.14087283]
[1768699036392,1.3370535,3304.3,3302.8,0.14087283]
[1768699036593,0.0022583,3304.5,3302.8,0.14087283]
[1768699036894,1.33723898,3304.4,3302.8,0.14087283]
[1768699037086,1.33723898,3304.3,3302.8,0.14087283]
[1768699037291,0.0022583,3304.5,3302.8,0.14087283]
[1768699037497,1.33746278,3304.4,3302.8,0.14087283]
[1768699037805,1.33746278,3304.3,3302.8,0.14087283]
[1768699038101,0.0022583,3304.5,3303.2,0.14087283]
[1768699043108,0.27737683,3304.4,3303.2,0.14087283]
[1768699043302,0.0022583,3304.5,3303.2,0.14087283]
[1768699043502,0.27736721,3304.4,3303.2,0.14087283]
[1768699043801,0.0022583,3304.5,3303.2,0.14087283]
[1768699044008,0.27737637,3304.4,3303.2,0.14087283]
[1768699044211,0.0022583,3304.5,3303.2,0.14087283]
[1768699044505,0.27735751,3304.4,3303.2,0.14087283]
[1768699044705,0.0022583,3304.5,3303.2,0.14087283]
[1768699044905,0.27737579,3304.4,3303.2,0.14087283]
[1768699045105,0.0022583,3304.5,3303.2,0.14087283]
[1768699045307,0.27737585,3304.4,3303.2,0.14087283]
[1768699045508,0.0022583,3304.5,3303.2,0.14087283]
[1768699045692,0.27738164,3304.4,3303.2,0.14087283]
[1768699045897,0.0022583,3304.5,3303.2,0.14087283]
[1768699046094,0.27738164,3304.4,3303.2,0.14087283]
[1768699046293,0.0022583,3304.5,3303.2,0.14087283]
[1768699046494,0.27739529,3304.4,3303.2,0.14087283]
[1768699046709,0.0022583,3304.5,3303.2,0.14087283]
[1768699047011,0.27739568,3304.4,3303.2,0.14087283]
[1768699047308,0.0022583,3304.5,3303.2,0.14087283]
[1768699047506,0.2774177,3304.4,3303.4,0.13134805]
[1768699047711,0.0022583,3304.5,3303.4,0.13134805]
[1768699047909,0.27741967,3304.4,3303.4,0.13134805]
[1768699048110,0.0022583,3304.5,3303.4,0.13134805]
[1768699048311,0.27740501,3304.4,3303.4,0.13134805]
[1768699048510,0.0022583,3304.5,3303.4,0.13134805]
[1768699048709,0.27743971,3304.4,3303.4,0.13134805]
[1768699048898,0.0022583,3304.5,3303.4,0.13134805]
[1768699049102,0.27743774,3304.4,3303.4,0.13134805]
[1768699049407,0.0022583,3304.5,3303.4,0.13134805]
[1768699049607,0.27744928,3304.4,3303.4,0.13134805]
[1768699049808,0.0022583,3304.5,3303.4,0.13134805]
[1768699050012,0.27744919,3304.4,3303.4,0.13134805]
[1768699050208,0.0022583,3304.5,3303.4,0.13134805]
[1768699050511,0.27744354,3304.4,3303.4,0.13134805]
[1768699050714,0.0022583,3304.5,3303.4,0.13134805]
[1768699050905,0.27744414,3304.4,3303.4,0.13134805]
[1768699051103,0.0022583,3304.5,3303.4,0.13134805]
[1768699053312,0.0022583,3304.5,3303.8,1.10922719]
[1768699054606,0.0022583,3304.5,3303.9,0.13355729]
[1768699055817,0.15133,3305.1,3304.0,0.97787914]
[1768699056018,1.33768837,3305.0,3304.0,1.11143643]
[1768699056216,1.33768837,3304.9,3304.0,1.11143643]
[1768699056409,1.33768837,3304.8,3304.0,1.11143643]
[1768699056603,0.2773884,3304.7,3304.0,1.11143643]
[1768699056816,0.0028496,3304.7,3304.0,1.11143643]
[1768699058115,0.0028496,3304.7,3304.0,0.13355729]
[1768699061642,0.97787914,3305.3,3304.1,0.13355729]
[1768699061811,1.33541,3305.2,3304.1,0.13355729]
[1768699062118,1.33541,3305.1,3304.1,0.13355729]
[1768699062319,1.33541,3305.0,3304.1,0.13355729]
[1768699062519,1.33541,3304.9,3304.1,0.13355729]
[1768699062723,0.0037454,3305.0,3304.1,0.13622099]
[1768699063104,0.27756752,3304.9,3304.1,0.13622099]
[1768699063310,0.0037454,3305.0,3304.1,0.13622099]
[1768699065321,0.27757131,3304.9,3304.1,0.13622099]
[1768699065623,0.0037454,3305.0,3304.1,0.13622099]
[1768699065820,0.27757169,3304.9,3304.1,0.13622099]
[1768699066123,0.0037454,3305.0,3304.1,0.13622099]
[1768699066308,0.97787914,3304.5,3303.1,0.13355729]
[1768699067322,0.97787914,3304.5,3303.1,0.13726742]
[1768699067620,0.97787914,3304.5,3303.3,0.13355729]
[1768699069719,0.97787914,3304.7,3303.4,0.97787914]
[1768699069918,1.33593216,3304.6,3303.5,0.13355729]
[1768699070120,1.33594592,3304.5,3303.5,0.13355729]
[1768699070313,0.1550854,3305.0,3303.8,0.13355729]
[1768699070523,1.33599913,3304.9,3303.8,0.13355729]
[1768699070718,1.33599913,3304.8,3303.8,0.13355729]
[1768699070920,1.33599913,3304.7,3303.8,0.13355729]
[1768699071123,0.277635,3304.6,3303.8,0.13355729]
[1768699071421,0.1550854,3305.0,3303.8,0.13355729]
[1768699071724,1.33604339,3304.9,3303.8,0.13355729]
[1768699071922,1.33604339,3304.8,3303.8,0.13355729]
[1768699072125,1.33604339,3304.7,3303.8,0.13355729]
[1768699072323,0.27764066,3304.6,3303.8,0.13355729]
[1768699072527,0.1550854,3305.0,3303.8,0.13355729]
[1768699072727,1.33606497,3304.9,3303.8,0.13355729]
[1768699073026,1.33606497,3304.8,3303.8,0.13355729]
[1768699073219,0.27764481,3304.7,3303.8,0.13355729]
[1768699073523,0.1550854,3305.0,3303.8,0.13355729]
[1768699073713,1.33612336,3304.9,3303.8,0.13355729]
[1768699073913,1.33612336,3304.8,3303.8,0.13355729]
[1768699074115,0.27765589,3304.7,3303.8,0.13355729]
[1768699074312,0.1550854,3305.0,3303.8,0.13355729]
[1768699074516,1.33613467,3304.9,3303.8,0.13355729]
[1768699074724,1.33613467,3304.8,3303.8,0.13355729]
[1768699074925,0.27765816,3304.7,3303.8,0.13355729]
[1768699075123,0.1550854,3305.0,3303.8,0.13355729]
[1768699075323,1.33614516,3304.9,3303.8,0.13355729]
[1768699075526,1.33614516,3304.8,3303.8,0.13355729]
[1768699075718,0.27765792,3304.7,3303.8,0.13355729]
[1768699075920,0.1550854,3305.0,3303.8,0.13355729]
[1768699076122,1.33614558,3304.9,3303.8,0.13355729]
[1768699076322,1.33614558,3304.8,3303.8,0.13355729]
[1768699076523,0.27766029,3304.7,3303.8,0.13355729]
[1768699076732,0.1550854,3305.0,3303.8,0.13355729]
[1768699076932,1.33616484,3304.9,3303.8,0.13355729]
[1768699077129,1.33616484,3304.8,3303.8,0.13355729]
[1768699077331,0.2776643,3304.7,3303.8,0.13355729]
[1768699077532,0.1550854,3305.0,3303.8,0.13355729]
[1768699077833,1.33616108,3304.9,3303.8,0.13355729]
[1768699078036,1.33616108,3304.8,3303.8,0.13355729]
[1768699078242,0.27766895,3304.7,3303.8,0.13355729]
[1768699078436,0.1550854,3305.0,3303.8,0.13355729]
[1768699078733,1.33616853,3304.9,3303.8,0.13355729]
[1768699079031,1.33616853,3304.8,3303.8,0.13355729]
[1768699079231,0.27767037,3304.7,3303.8,0.13355729]
[1768699079531,0.1550854,3305.0,3303.8,0.13355729]
[1768699079731,1.33619384,3304.9,3303.8,0.13355729]
[1768699079931,1.33619384,3304.8,3303.8,0.13355729]
[1768699080129,0.27767547,3304.7,3303.8,0.13355729]
[1768699080331,0.0037454,3305.0,3303.8,0.13355729]
[1768699080533,1.33622371,3304.9,3303.8,0.13355729]
[1768699080731,1.33622371,3304.8,3304.0,0.13830054]
[1768699080924,0.27767626,3304.7,3304.0,0.13830054]
[1768699081123,0.0037454,3305.0,3304.0,0.13830054]
[1768699081320,0.27767466,3304.9,3304.2,1.11617968]
[1768699081537,0.0037454,3305.0,3304.2,1.11617968]
[1768699081738,0.2776802,3304.9,3304.3,0.13830054]
[1768699081938,0.0037454,3305.0,3304.3,0.13830054]
[1768699082238,0.27767894,3304.9,3304.3,0.13830054]
[1768699082535,0.0037454,3305.0,3304.3,0.13830054]
[1768699088040,0.0037454,3305.0,3304.2,0.97787914]
[1768699088041,0.0037454,3305.0,3304.5,0.13830054]
[1768699088239,0.006051,3305.4,3304.5,0.13830054]
[1768699088429,1.33889503,3305.3,3304.5,0.13830054]
[1768699088634,0.27751638,3305.2,3304.5,0.13830054]
[1768699088840,0.006051,3305.4,3304.5,0.13830054]
[1768699089039,0.27751647,3305.3,3304.5,0.13830054]
[1768699089236,0.00245208,3305.3,3304.5,0.13830054]
[1768699089543,0.00245208,3305.3,3304.7,0.13830054]
[1768699092540,0.006051,3305.4,3304.9,0.13830054]
[1768699093037,1.06069848,3305.3,3304.9,0.13830054]
[1768699093239,0.006051,3305.4,3304.9,0.13830054]
[1768699093442,0.27728797,3305.3,3304.9,0.13830054]
[1768699093636,3.3153941,3306.1,3304.9,0.13830054]
[1768699093828,1.33789002,3306.0,3305.0,0.13830054]
[1768699094033,1.33789002,3305.9,3305.0,0.13830054]
[1768699094234,1.33789002,3305.8,3305.0,0.13830054]
[1768699094436,1.33789002,3305.7,3305.0,0.13830054]
[1768699094630,1.33789002,3305.6,3305.0,0.13830054]
[1768699094839,0.27730747,3305.5,3305.0,0.13830054]
[1768699095032,0.00283037,3305.7,3305.0,0.13830054]
[1768699100542,0.00283037,3305.7,3305.2,0.13830054]
[1768699100749,3.41184709,3306.4,3305.4,0.13830054]
[1768699101040,1.33641436,3306.3,3305.4,0.13830054]
[1768699101245,1.33638606,3306.2,3305.4,0.13830054]
[1768699101446,0.27697021,3306.1,3305.4,0.13830054]
[1768699101646,0.00295982,3306.1,3305.4,0.13830054]
[1768699101844,1.6163941,3306.9,3305.8,0.13830054]
[1768699102045,1.33642631,3306.8,3305.8,0.13830054]
[1768699102351,1.33642631,3306.7,3305.8,0.13830054]
[1768699102550,1.33642631,3306.6,3305.8,0.13830054]
[1768699102848,1.33642631,3306.5,3305.8,0.14075762]
[1768699103048,0.00313314,3306.6,3305.8,0.14075762]
[1768699103946,1.6163941,3307.5,3306.2,0.13379948]
[1768699104249,1.33572179,3307.4,3306.2,0.13379948]
[1768699104554,1.33572179,3307.3,3306.2,0.13379948]
[1768699104737,0.97787914,3307.5,3306.2,0.13379948]
[1768699104945,1.33494549,3307.4,3306.2,0.13379948]
[1768699105252,0.27667079,3307.3,3306.2,0.13379948]
[1768699105444,0.98007835,3307.5,3306.2,0.13379948]
[1768699105648,1.33433742,3307.4,3306.2,0.13379948]
[1768699105846,0.27654625,3307.3,3306.2,0.13379948]
[1768699106152,0.97787914,3307.3,3306.2,0.13379948]
[1768699108644,0.97787914,3307.1,3305.8,0.13625656]
[1768699108848,0.97787914,3306.9,3305.8,0.13625656]
[1768699109050,0.97787914,3307.2,3305.9,0.13379948]
[1768699109242,0.00219921,3307.5,3306.4,0.97787914]
[1768699109445,1.05695004,3307.4,3306.4,0.13379948]
[1768699109639,0.00219921,3307.5,3306.4,0.13379948]
[1768699109835,1.0569557,3307.4,3306.4,0.13379948]
[1768699110050,0.00219921,3307.5,3306.4,0.13379948]
[1768699110251,0.00219921,3307.5,3306.6,0.13379948]
[1768699119457,1.8512,3308.0,3306.6,0.13379948]
[1768699119756,1.32821197,3307.9,3306.6,0.13379948]
[1768699119959,1.32821197,3307.8,3306.6,0.13379948]
[1768699120150,1.32825198,3307.7,3306.6,0.13379948]
[1768699120344,1.05186491,3307.6,3306.6,0.13379948]
[1768699122960,0.00224012,3307.7,3306.6,0.13379948]
[1768699123351,0.00224012,3307.7,3306.8,0.13647229]
[1768699125562,4.6443941,3308.5,3306.8,0.13647229]
[1768699125766,1.33007341,3308.4,3306.8,0.13647229]
[1768699126063,1.33007341,3308.3,3306.8,0.13647229]
[1768699126262,1.05333487,3308.2,3306.8,0.13647229]
[1768699126556,1.05333487,3308.1,3306.8,0.13647229]
[1768699127667,0.00236511,3308.2,3307.2,0.13647229]
[1768699128154,1.05365393,3308.1,3307.2,0.13647229]
[1768699128358,1.05365393,3308.0,3307.2,0.13647229]
[1768699128562,1.05365393,3307.9,3307.2,0.13647229]
[1768699128755,0.00236511,3308.2,3306.2,0.13647229]
[1768699128950,1.33069503,3308.1,3306.2,0.13647229]
[1768699129172,1.05380458,3308.0,3306.6,0.13647229]
[1768699129467,1.05380458,3307.9,3306.6,0.13647229]
[1768699129763,0.00236511,3308.2,3307.0,0.13647229]
[1768699129965,1.05432054,3308.1,3307.0,0.13647229]
[1768699130151,0.00236511,3308.2,3307.0,0.13647229]
[1768699130355,1.05476201,3308.1,3307.0,0.13647229]
[1768699130659,0.00236511,3308.2,3307.0,0.13647229]
[1768699130858,1.05476113,3308.1,3307.0,0.13647229]
[1768699131059,0.00236511,3308.2,3307.0,0.13647229]
[1768699131264,1.05519907,3308.1,3307.0,0.13647229]
[1768699131465,1.05519907,3308.0,3307.0,0.13647229]
[1768699131658,0.00236511,3308.2,3307.0,0.13647229]
[1768699131859,1.05519877,3308.1,3307.0,0.13647229]
[1768699132061,1.05519877,3308.0,3307.0,0.13647229]
[1768699132255,0.00236511,3308.2,3307.0,0.13647229]
[1768699132457,1.05536156,3308.1,3307.0,0.13647229]
[1768699132754,0.00236511,3308.2,3307.0,0.13647229]
[1768699133168,1.3327025,3308.1,3307.0,0.13647229]
[1768699133366,0.00236511,3308.2,3307.0,0.13647229]
[1768699133367,1.3327025,3308.0,3307.0,0.13647229]
[1768699133569,1.0554102,3307.9,3307.0,0.13647229]
[1768699133768,1.0554102,3307.8,3307.0,0.13647229]
[1768699133961,0.00236511,3308.2,3307.0,0.13647229]
[1768699134157,1.33285176,3308.1,3307.0,0.13647229]
[1768699134361,1.89371852,3308.0,3306.0,0.14143704]
[1768699134669,2.94924586,3307.9,3306.0,0.14143704]
[1768699134867,1.33285176,3307.8,3306.0,0.14143704]
[1768699135066,1.33285176,3307.7,3306.0,0.14143704]
[1768699135269,1.6163941,3307.9,3306.0,0.14143704]
[1768699135270,1.33285176,3307.6,3306.0,0.14143704]
[1768699135574,1.33285176,3307.5,3306.0,0.14143704]
[1768699135762,1.33285176,3307.4,3306.0,0.14143704]
[1768699135962,1.05552734,3307.3,3306.0,0.14143704]
[1768699136162,1.6163941,3307.8,3306.0,0.14143704]
[1768699136372,0.27732687,3307.7,3306.0,0.14143704]
[1768699136565,1.33281086,3307.6,3306.0,0.14143704]
[1768699136768,1.33281086,3307.5,3306.0,0.14143704]
[1768699136969,1.33281086,3307.4,3306.4,0.14143704]
[1768699137170,1.05548399,3307.3,3306.4,0.14143704]
[1768699137471,1.6163941,3308.0,3306.4,0.14143704]
[1768699137675,0.27737093,3307.9,3306.4,0.14143704]
[1768699137863,1.33303731,3307.8,3306.4,0.14143704]
[1768699138063,1.33303731,3307.7,3306.4,0.14143704]
[1768699138271,1.33303731,3307.6,3306.4,0.14143704]
[1768699138474,1.33303731,3307.5,3306.4,0.14143704]
[1768699138673,1.05566638,3307.4,3306.4,0.14143704]
[1768699138861,1.6163941,3307.9,3306.4,0.14143704]
[1768699139065,0.27741292,3307.8,3306.4,0.14143704]
[1768699139264,1.33323575,3307.7,3306.4,0.14143704]
[1768699139470,1.33323575,3307.6,3306.4,0.14143704]
[1768699139669,1.33323575,3307.5,3306.4,0.14143704]
[1768699139870,1.05582283,3307.4,3306.4,0.14143704]
[1768699140072,1.6163941,3307.9,3306.4,0.14143704]
[1768699140267,0.27746944,3307.8,3306.4,0.14143704]
[1768699140468,1.33362289,3307.7,3306.4,0.14143704]
[1768699140668,1.33362289,3307.6,3306.4,0.14143704]
[1768699140960,1.33362289,3307.5,3306.4,0.14143704]
[1768699141161,1.05615345,3307.4,3306.4,0.14143704]
[1768699141368,1.6163941,3307.9,3306.4,0.14143704]
[1768699141567,0.27749737,3307.8,3306.4,0.14143704]
[1768699141773,1.33371306,3307.7,3306.4,0.14143704]
[1768699142074,1.33371306,3307.6,3306.4,0.14143704]
[1768699142275,1.33371306,3307.5,3306.4,0.14143704]
[1768699142575,1.6163941,3308.1,3306.7,0.14143704]
[1768699142781,0.27753223,3308.0,3307.1,0.14143704]
[1768699142967,0.27753223,3307.9,3307.1,0.14143704]
[1768699143166,0.00236511,3308.2,3307.1,0.14143704]
[1768699166797,2.84765048,3309.2,3307.5,0.13944362]
[1768699167003,1.33576576,3309.1,3307.5,0.13944362]
[1768699167300,1.33576576,3309.0,3307.5,0.13944362]
[1768699167500,1.33576576,3308.9,3307.5,0.13944362]
[1768699167703,1.33576576,3308.8,3307.5,0.13944362]
[1768699167903,1.33576576,3308.7,3307.5,0.13944362]
[1768699168105,1.33576576,3308.6,3307.5,0.13944362]
[1768699168294,0.00223472,3308.9,3307.5,0.13944362]
[1768699168495,1.33609025,3308.8,3307.5,0.13944362]
[1768699168694,1.33609025,3308.7,3307.5,0.13944362]
[1768699168895,1.33609025,3308.6,3307.5,0.13944362]
[1768699169196,0.27777966,3308.5,3307.5,0.13944362]
[1768699169395,0.00223472,3308.9,3307.5,0.13944362]
[1768699169595,1.33625162,3308.8,3307.5,0.13944362]
[1768699169893,1.33625162,3308.7,3307.5,0.13944362]
[1768699170093,0.27781287,3308.6,3307.5,0.13944362]
[1768699170296,0.00223472,3308.9,3307.5,0.13944362]
[1768699170498,1.33615291,3308.8,3307.5,0.13944362]
[1768699170697,1.33615291,3308.7,3307.5,0.13944362]
[1768699170899,0.27779028,3308.6,3307.5,0.13944362]
[1768699171089,0.00223472,3308.9,3307.5,0.13944362]
[1768699171290,1.33615354,3308.8,3307.5,0.13944362]
[1768699171490,1.33615354,3308.7,3307.5,0.13944362]
[1768699171694,0.27779041,3308.6,3307.5,0.13944362]
[1768699171899,0.27779041,3308.5,3307.5,0.13944362]
[1768699172108,0.00223472,3308.9,3307.5,0.13944362]
[1768699172297,1.33636701,3308.8,3307.5,0.13944362]
[1768699172496,1.33636701,3308.7,3307.5,0.13944362]
[1768699172703,1.33636701,3308.6,3307.5,0.13944362]
[1768699172891,0.27783471,3308.5,3307.5,0.13944362]
[1768699173096,0.00223472,3308.9,3307.5,0.13944362]
[1768699173297,1.33665538,3308.8,3307.5,0.13944362]
[1768699173495,1.33665538,3308.7,3307.5,0.13944362]
[1768699173805,0.27789451,3308.6,3307.5,0.13944362]
[1768699174104,0.00223472,3308.9,3307.5,0.13944362]
[1768699174307,1.33661052,3308.8,3307.5,0.13944362]
[1768699174496,1.33661052,3308.7,3307.5,0.13944362]
[1768699174699,0.27788471,3308.6,3307.5,0.13944362]
[1768699174906,0.00223472,3308.9,3307.5,0.13944362]
[1768699175097,1.33652058,3308.8,3307.5,0.13944362]
[1768699175297,1.33652058,3308.7,3307.9,0.13626589]
[1768699175493,0.27785255,3308.6,3307.9,0.13626589]
[1768699175701,0.00223472,3308.9,3307.9,0.13626589]
[1768699175898,1.33645397,3308.8,3307.9,0.13626589]
[1768699176102,1.33645397,3308.7,3308.1,0.13626589]
[1768699176297,0.27785258,3308.6,3308.1,0.13626589]
[1768699176500,0.00223472,3308.9,3308.3,0.13626589]
[1768699176698,0.00223472,3308.9,3308.3,0.13872231]
[1768699181602,0.00223472,3308.9,3308.3,0.00245642]
[1768699181603,0.9754541,3308.8,3308.3,0.00245642]
[1768699181803,0.9754541,3308.8,3307.9,0.13626589]
[1768699182803,0.9754541,3308.8,3307.9,0.13845352]
[1768699184106,0.9754541,3308.6,3307.9,0.00218763]
[1768699184311,0.00223472,3308.9,3307.9,0.00218763]
[1768699184511,0.9754541,3308.6,3307.9,0.00218763]
[1768699186416,0.9754541,3308.8,3307.9,0.00218763]
[1768699186616,1.05491597,3308.7,3307.9,0.00218763]
[1768699186915,0.9754541,3308.8,3307.9,0.00218763]
[1768699187115,1.05491364,3308.7,3307.9,0.00218763]
[1768699187413,0.9754541,3308.8,3307.9,0.00218763]
[1768699187614,1.05497914,3308.7,3307.9,0.00218763]
[1768699187814,0.9754541,3308.8,3307.9,0.00218763]
[1768699188006,1.05498282,3308.7,3307.9,0.00218763]
[1768699188207,0.9754541,3308.8,3307.9,0.00218763]
[1768699188406,1.32847555,3308.7,3307.9,0.00218763]
[1768699188607,0.2734926,3308.6,3307.9,0.00218763]
[1768699188803,0.9754541,3308.8,3307.9,0.00218763]
[1768699189009,1.32853525,3308.7,3307.9,0.00218763]
[1768699189215,0.27349313,3308.6,3307.9,0.00218763]
[1768699189412,0.9754541,3308.8,3307.9,0.00218763]
[1768699189615,1.32861813,3308.7,3307.9,0.00218763]
[1768699189815,0.27350953,3308.6,3307.9,0.00218763]
[1768699190011,0.9754541,3308.8,3307.9,0.00218763]
[1768699190210,1.32861813,3308.7,3307.9,0.00218763]
[1768699190410,0.27350953,3308.6,3307.9,0.00218763]
[1768699190619,0.9754541,3308.8,3307.9,0.00218763]
[1768699190820,1.3287229,3308.7,3307.9,0.00218763]
[1768699191117,0.27353109,3308.6,3307.9,0.00218763]
[1768699191418,0.9754541,3308.8,3307.9,0.00218763]
[1768699191613,1.32884309,3308.7,3307.9,0.00218763]
[1768699191812,0.27355567,3308.6,3307.9,0.00218763]
[1768699192013,0.9754541,3308.8,3307.9,0.00218763]
[1768699192319,1.32884309,3308.7,3307.9,0.00218763]
[1768699192509,0.27355567,3308.6,3307.9,0.00218763]
[1768699192710,0.9754541,3308.8,3307.9,0.00218763]
[1768699193017,0.27358423,3308.7,3307.9,0.00218763]
[1768699193220,0.9754541,3308.8,3307.9,0.00218763]
[1768699194721,0.9754541,3308.6,3307.9,0.00218763]